Workbook

Sheet паспорт
A1: ПАТ "УКРТРАНСГАЗ" | G1: ПАСПОРТ ФІЗИКО-ХІМІЧНИХ ПОКАЗНИКІВ ПРИРОДНОГО ГАЗУ №94
A2: Філія "УМГ "Київтрансгаз" | G2: переданогоДиканським ЛВУМГ та прийнятого ПАТ "Полтавагаз"
A3: Диканський п/м Диканське ЛВУМГ | G3: Маршрут №94
A4: Вимірювальна хіміко-аналітична лабораторія
A5: Свідоцтво № 186-13 чинне до 05.12.2018 р. | K5: по газопроводу "ШЕБЕЛІНКА - ПОЛТАВА - КИЇВ" | V5: за період з | X5: 2017-04-01 | Z5: по | AA5: 30.04.2017р.
A7: Число місяця | B7: Компонентний склад, % мол. | N7: Фізико-хімічні показники газу обчислені на основі компонентного складу, 101,325 кПа | X7: Температура точки роси за вологою (Р = 3.92 МПа), °С | Y7: Температура точки роси за вуглеводнями, °С | Z7: Вміст сірководню, г/м3 | AA7: Вміст меркаптанової сірки, г/м3 | AB7: Вміст механічних домішок, г/м3
N8: Густина абсолютна, кг/м3,при 20 ºС, | O8: Температура вимірювання/згоряння при 20/25°С
B9: метан, С1 | C9: етан, С2 | D9: пропан, С3 | E9: ізо-бутан, і-С4 | F9: н-бутан, н-С4 | G9: нео-пентан, нео-С5 | H9: ізо-пентан, і-С5 | I9: н-пентан, н-С5 | J9: гексани та вищі, С6+ | K9: кисень, О2 | L9: азот, N2 | M9: діоксид вуглецю, CО2 | O9: Теплота згоряння нижча | R9: Теплота згоряння вища | U9: Число Воббе вище
O10: ккал/м3 | P10: МДж/м3 | Q10: кВт⋅год/м3 | R10: ккал/м3 | S10: МДж/м3 | T10: кВт⋅год/м3 | U10: ккал/м3 | V10: МДж/м3 | W10: кВт⋅год/м3
A11: 1 | O11: 8382 | P11: 35.09 | Q11: =P11/3.6 -> 9.747222222 | R11: 9283 | S11: 38.87 | T11: =S11/3.6 -> 10.79722222 | AC11: =SUM(B11:M11)+$K$41+$N$41 -> 0
A12: 2 | O12: 8382 | P12: 35.09 | Q12: =P12/3.6 -> 9.747222222 | R12: 9283 | S12: 38.87 | T12: =S12/3.6 -> 10.79722222 | AC12: 0
A13: 3 | O13: 8382 | P13: 35.09 | Q13: 9.747222222 | R13: 9283 | S13: 38.87 | T13: 10.79722222 | AC13: 0 | AD13: =IF(AC13=100,"ОК"," ") -> 
A14: 4 | O14: 8382 | P14: 35.09 | Q14: 9.747222222 | R14: 9283 | S14: 38.87 | T14: 10.79722222 | AC14: 0 | AD14: =IF(AC14=100,"ОК"," ") -> 
A15: 5 | B15: 91.2186 | C15: 4.6374 | D15: 1.2092 | E15: 0.1642 | F15: 0.2429 | G15: 0.0047 | H15: 0.067 | I15: 0.0517 | J15: 0.0793 | K15: 0.0075 | L15: 1.2555 | M15: 1.062 | N15: 0.7407 | O15: 8369.405302 | P15: 35.0427 | Q15: 9.734083333 | R15: 9269.381419 | S15: 38.8109 | T15: 10.78080556 | U15: 11820.10986 | V15: 49.4908 | W15: 13.74678662 | X15: -8.1 | Y15: -14.2 | Z15: <0,006 | AA15: <0,02 | AB15: від. | AC15: 100 | AD15: ОК
A16: 6 | O16: 8369.405302 | P16: 35.0427 | Q16: =P16/3.6 -> 9.734083333 | R16: 9269.381419 | S16: 38.8109 | T16: =S16/3.6 -> 10.78080556 | AC16: 0
A17: 7 | O17: 8369.405302 | P17: 35.0427 | Q17: 9.734083333 | R17: 9269.381419 | S17: 38.8109 | T17: 10.78080556 | AC17: 0
A18: 8 | O18: 8369.405302 | P18: 35.0427 | Q18: 9.734083333 | R18: 9269.381419 | S18: 38.8109 | T18: 10.78080556 | AC18: 0
A19: 9 | O19: 8369.405302 | P19: 35.0427 | Q19: 9.734083333 | R19: 9269.381419 | S19: 38.8109 | T19: 10.78080556 | AC19: 0
A20: 10 | O20: 8369.405302 | P20: 35.0427 | Q20: 9.734083333 | R20: 9269.381419 | S20: 38.8109 | T20: 10.78080556 | AC20: 0
A21: 11 | O21: 8369.405302 | P21: 35.0427 | Q21: 9.734083333 | R21: 9269.381419 | S21: 38.8109 | T21: 10.78080556 | AC21: 0
A22: 12 | O22: 8369.405302 | P22: 35.0427 | Q22: 9.734083333 | R22: 9269.381419 | S22: 38.8109 | T22: 10.78080556 | AC22: 0
A23: 13 | B23: 90.4407 | C23: 5.1289 | D23: 1.3285 | E23: 0.1561 | F23: 0.26 | G23: 0.0044 | H23: 0.0746 | I23: 0.055 | J23: 0.0702 | K23: 0.0031 | L23: 1.4145 | M23: 1.0639 | N23: 0.7459 | O23: 8403.988536 | P23: 35.1875 | Q23: 9.774305556 | R23: 9305.923095 | S23: 38.9639 | T23: 10.82330556 | U23: 11825.17316 | V23: 49.512 | W23: 13.75267523 | X23: -6.4 | Y23: -3.2 | AC23: 99.9999
A24: 14 | O24: 8403.988536 | P24: 35.1875 | Q24: =P24/3.6 -> 9.774305556 | R24: 9305.923095 | S24: 38.9639 | T24: =S24/3.6 -> 10.82330556 | AC24: 0
A25: 15 | O25: 8403.988536 | P25: 35.1875 | Q25: 9.774305556 | R25: 9305.923095 | S25: 38.9639 | T25: 10.82330556 | AC25: 0
A26: 16 | O26: 8403.988536 | P26: 35.1875 | Q26: 9.774305556 | R26: 9305.923095 | S26: 38.9639 | T26: 10.82330556 | AC26: 0
A27: 17 | O27: 8403.988536 | P27: 35.1875 | Q27: 9.774305556 | R27: 9305.923095 | S27: 38.9639 | T27: 10.82330556 | AC27: 0
A28: 18 | O28: 8403.988536 | P28: 35.1875 | Q28: 9.774305556 | R28: 9305.923095 | S28: 38.9639 | T28: 10.82330556 | AC28: 0
A29: 19 | B29: 90.5736 | C29: 5.0384 | D29: 1.2877 | E29: 0.1498 | F29: 0.2278 | G29: 0.0037 | H29: 0.0642 | I29: 0.053 | J29: 0.1016 | K29: 0.0068 | L29: 1.4486 | M29: 1.0449 | N29: 0.7448 | O29: 8391.043707 | P29: 35.1333 | Q29: 9.75925 | R29: 9291.999045 | S29: 38.9056 | T29: 10.80711111 | U29: 11816.21686 | V29: 49.4745 | W29: 13.74225906 | X29: -4 | Y29: -8.4 | AC29: 100.0001
A30: 20 | O30: 8391.043707 | P30: 35.1333 | Q30: =P30/3.6 -> 9.75925 | R30: 9291.999045 | S30: 38.9056 | T30: =S30/3.6 -> 10.80711111 | AC30: 0 | AD30: =IF(AC30=100,"ОК"," ") -> 
A31: 21 | O31: 8391.043707 | P31: 35.1333 | Q31: 9.75925 | R31: 9291.999045 | S31: 38.9056 | T31: 10.80711111 | AC31: 0
A32: 22 | O32: 8391.043707 | P32: 35.1333 | Q32: 9.75925 | R32: 9291.999045 | S32: 38.9056 | T32: 10.80711111 | AC32: 0
A33: 23 | O33: 8391.043707 | P33: 35.1333 | Q33: 9.75925 | R33: 9291.999045 | S33: 38.9056 | T33: 10.80711111 | AC33: 0 | AD33: =IF(AC33=100,"ОК"," ") -> 
A34: 24 | O34: 8391.043707 | P34: 35.1333 | Q34: 9.75925 | R34: 9291.999045 | S34: 38.9056 | T34: 10.80711111 | AC34: 0
A35: 25 | O35: 8391.043707 | P35: 35.1333 | Q35: 9.75925 | R35: 9291.999045 | S35: 38.9056 | T35: 10.80711111 | AC35: 0
A36: 26 | O36: 8391.043707 | P36: 35.1333 | Q36: 9.75925 | R36: 9291.999045 | S36: 38.9056 | T36: 10.80711111 | AC36: 0
A37: 27 | B37: 90.4636 | C37: 5.0208 | D37: 1.3509 | E37: 0.1651 | F37: 0.2733 | G37: 0.0041 | H37: 0.0721 | I37: 0.0542 | J37: 0.0785 | K37: 0.0062 | L37: 1.4672 | M37: 1.0439 | N37: 0.7462 | O37: 8402.937664 | P37: 35.1831 | Q37: 9.773083333 | R37: 9304.705039 | S37: 38.9588 | T37: 10.82188889 | U37: 11821.78171 | V37: 49.4978 | W37: 13.74873097 | X37: -4 | Y37: -6.5 | AC37: 99.9999
A38: 28 | O38: 8402.937664 | P38: 35.1831 | Q38: =P38/3.6 -> 9.773083333 | R38: 9304.705039 | S38: 38.9588 | T38: =S38/3.6 -> 10.82188889
A39: 29 | O39: 8402.937664 | P39: 35.1831 | Q39: 9.773083333 | R39: 9304.705039 | S39: 38.9588 | T39: 10.82188889
A40: 30 | O40: 8402.937664 | P40: 35.1831 | Q40: 9.773083333 | R40: 9304.705039 | S40: 38.9588 | T40: 10.82188889
A41: Рівень одоризації відповідає чинним нормативним документам | O41: 8387.715541 | P41: 35.1185866 | Q41: 9.755162945 | R41: 9288.683308 | S41: 38.89201481 | T41: 10.80333745
H42: Середньозважене значення теплоти згоряння:
B45: Заступник начальника Диканського ЛВУМГ Герасименко І.М. 28.04.2017р.
B47: Завідувач лабораторії Горшковоз О.В. 28.04.2017р.
B49: Начальник служби ГВМ та М Левадний С.А. 28.04.2017р.

Sheet додаток
A2: Додаток до Паспорту фізико-хімічних показників природного газу № | E2: 94
A4: Область | B4: ГРС, прямий споживач | C4: Cередньозважене значення вищої теплоти згоряння
C5: МДж/м³ | D5: ккал/м³ | E5: кВт*год./м³
A6: Полтавська область | B6: ГРСМилорадово | C6: 38.89201481 | D6: 9289.19828 | E6: 10.80333745
A7: Середньозважене значення вищої теплоти згоряння по маршруту №94 | C7: 38.89201481 | D7: 9289.19828 | E7: 10.80333745
A10: Заступник начальника Диканського ЛВУМГ | C10: Герасименко І.М. | E10: 28.04.2017р.
A12: Завідувач вимірювальної хіміко-аналітичної лабораторії лабораторії | C12: Горшковоз О.В. | E12: 28.04.2017р.
A14: Начальник службиГВ та М | C14: Левадний С.А. | E14: 28.04.2017р.

Sheet variablesList (hidden)
A1: 3 | B1: x:\gaysin | C1: 10, 11, 24, 25, 127, 128, 132, 180, 207, 215 | D1: x:\
B2: x:\Illinci
B3: x:\Talne
